bitfinex/quotes_SOLUSD_20241226
["timestamp","ask_amount","ask_price","bid_price","bid_amount"]
[1735175175257,27.03711028,197.69,197.6,27.03711028]
[1735175179580,27.03711028,197.73,197.64,27.03711028]
[1735175180381,27.03711028,197.75,197.66,27.03711028]
[1735175180583,27.03711028,197.77,197.68,27.03711028]
[1735175180765,27.03711028,197.79,197.7,27.03711028]
[1735175180965,27.03711028,197.79,197.72,27.03711028]
[1735175181471,27.03711028,197.79,197.73,6.5764]
[1735175182073,27.03711028,197.77,197.73,6.5764]
[1735175182467,27.03711028,197.75,197.64,0.75848447]
[1735175182780,27.03711028,197.75,197.65,27.03711028]
[1735175182986,27.03711028,197.75,197.66,0.75863442]
[1735175183657,27.03711028,197.75,197.67,6.5764]
[1735175183865,27.03711028,197.75,197.68,1.5593]
[1735175184667,27.03711028,197.77,197.68,1.5593]
[1735175185688,27.03711028,197.77,197.69,0.75851692]
[1735175186376,27.03711028,197.79,197.71,27.03711028]
[1735175186582,27.03711028,197.79,197.72,0.75837305]
[1735175187766,47.03711028,197.81,197.73,27.03711028]
[1735175188187,47.03711028,197.81,197.72,0.75837305]
[1735175188491,27.03711028,197.74,197.68,1.5593]
[1735175188866,27.03711028,197.72,197.68,1.5593]
[1735175189068,27.03711028,197.72,197.67,6.5764]
[1735175189373,27.03711028,197.68,197.63,1.5593]
[1735175190266,27.03711028,197.64,197.61,6.5764]
[1735175192094,27.03711028,197.66,197.61,6.5764]
[1735175193595,27.03711028,197.64,197.61,6.5764]
[1735175195092,27.03711028,197.64,197.58,1.5593]
[1735175196370,27.03711028,197.59,197.58,1.5593]
[1735175196572,27.03711028,197.61,197.58,1.5593]
[1735175197787,27.03711028,197.65,197.58,1.5593]
[1735175198774,27.03711028,197.65,197.58,28.59641028]
[1735175198981,27.03711028,197.69,197.6,27.03711028]
[1735175200397,27.03711028,197.69,197.61,0.75880613]
[1735175200578,27.03711028,197.71,197.62,33.42131028]
[1735175200780,27.03711028,197.71,197.64,27.03711028]
[1735175201599,27.03711028,197.71,197.63,0.75870835]
[1735175202175,27.03711028,197.71,197.63,27.79581863]
[1735175203974,27.03711028,197.73,197.65,27.03711028]
[1735175206182,27.03711028,197.73,197.66,2.29864386]
[1735175206391,27.03711028,197.77,197.69,27.03711028]
[1735175206697,27.03711028,197.73,197.66,1.54]
[1735175207296,27.03711028,197.75,197.67,27.92126782]
[1735175207503,27.03711028,197.75,197.67,27.03711028]
[1735175209299,27.03711028,197.75,197.66,2.29864709]
[1735175209806,27.03711028,197.73,197.66,2.29864709]
[1735175212201,16.90112207,197.74,197.66,19.19976916]
[1735175212408,16.90112207,197.72,197.66,2.29864709]
[1735175213206,16.90112207,197.74,197.66,2.29864709]
[1735175214610,16.90112207,197.74,197.66,19.19976916]
[1735175218916,16.90112207,197.72,197.66,2.29864709]
[1735175219119,16.90112207,197.72,197.66,1.54]
[1735175219423,16.90112207,197.74,197.66,1.54]
[1735175222897,16.90112207,197.74,197.67,16.90112207]
[1735175223099,16.90112207,197.78,197.7,0.12549]
[1735175223298,16.90112207,197.78,197.71,16.90112207]
[1735175223499,16.90112207,197.76,197.69,6.0486]
[1735175223744,16.90112207,197.74,197.69,6.0486]
[1735175224327,16.90112207,197.72,197.69,6.0486]
[1735175224705,16.85263704,197.72,197.69,6.0486]
[1735175224906,16.76050009,197.72,197.69,6.0486]
[1735175227929,0.16650954,197.77,197.7,17.65978898]
[1735175228110,0.16650954,197.77,197.7,0.75866691]
[1735175228317,0.16650954,197.77,197.72,16.90112207]
[1735175229736,0.16650954,197.77,197.73,0.12549]
[1735175229932,0.16650954,197.77,197.74,16.90112207]
[1735175231252,0.16650954,197.77,197.75,1.6015]
[1735175231429,0.16650954,197.77,197.76,16.90112207]
[1735175232442,0.16650954,197.77,197.76,23.23011207]
[1735175232744,16.90112207,197.88,197.79,0.12549]
[1735175233045,16.90112207,197.88,197.81,16.90112207]
[1735175233418,16.90112207,197.88,197.81,17.659138]
[1735175234321,16.90112207,197.88,197.79,17.78462819]
[1735175234548,16.90112207,197.86,197.79,17.65913819]
[1735175234723,16.90112207,197.82,197.76,6.2035]
[1735175234922,16.90112207,197.8,197.76,6.2035]
[1735175235121,16.90112207,197.78,197.71,23.10462207]
[1735175235432,16.90112207,197.76,197.71,6.2035]
[1735175237942,16.90112207,197.78,197.71,6.2035]
[1735175238148,16.90112207,197.8,197.71,23.10462207]
[1735175238651,16.90112207,197.78,197.71,23.10462207]
[1735175238857,16.90112207,197.8,197.71,6.2035]
[1735175239851,16.90112207,197.8,197.72,16.90112207]
[1735175240148,16.90112207,197.84,197.76,16.90112207]
[1735175241150,16.90112207,197.86,197.78,16.90112207]
[1735175242339,16.90112207,197.88,197.8,16.90112207]
[1735175243738,16.90112207,197.88,197.79,8.65550778]
[1735175243976,16.90112207,197.88,197.79,24.79852207]
[1735175244874,16.90112207,197.86,197.79,24.79852207]
[1735175245083,16.90112207,197.86,197.79,7.8974]
[1735175245461,16.90112207,197.84,197.79,7.8974]
[1735175250783,16.90112207,197.86,197.79,7.8974]
[1735175251169,16.90112207,197.86,197.79,24.79852207]
[1735175251370,16.90112207,197.88,197.79,24.79852207]
[1735175251591,16.90112207,197.86,197.79,7.8974]
[1735175252495,16.90112207,197.84,197.79,7.8974]
[1735175252878,16.90112207,197.88,197.79,24.79852207]
[1735175256196,16.90112207,197.84,197.79,7.8974]
[1735175258101,16.90112207,197.8,197.75,6.0011]
[1735175258893,16.90112207,197.78,197.75,6.0011]
[1735175259378,16.90112207,197.76,197.7,6.0011]
[1735175260398,16.90112207,197.74,197.7,6.0011]
[1735175260982,16.90112207,197.72,197.7,6.0011]
[1735175263692,16.90112207,197.74,197.7,6.0011]
[1735175265527,16.90112207,197.72,197.7,6.0011]
[1735175265820,16.90112207,197.72,197.65,6.0011]
[1735175266118,16.90112207,197.68,197.6,6.7598805]
[1735175266281,16.90112207,197.66,197.6,6.0011]
[1735175266685,0.12549,197.74,197.6,6.0011]
[1735175266686,16.90112207,197.62,197.6,6.0011]
[1735175266914,16.90112207,197.61,197.55,6.0011]
[1735175267119,16.90112207,197.59,197.55,6.0011]
[1735175267283,16.90112207,197.57,197.5,32.7820899]
[1735175267704,16.90112207,197.61,197.54,16.90112207]
[1735175267914,16.90112207,197.61,197.53,16.90112207]
[1735175268204,16.90112207,197.59,197.51,16.90112207]
[1735175268413,16.90112207,197.59,197.5,6.0011]
[1735175268414,16.90112207,197.57,197.5,6.0011]
[1735175268917,16.90112207,197.53,197.5,6.0011]
[1735175271112,16.90112207,197.53,197.45,17.66052678]
[1735175271493,16.90112207,197.51,197.43,17.6605752]
[1735175271693,16.90112207,197.51,197.42,6.0011]
[1735175271694,16.90112207,197.49,197.42,6.0011]
[1735175272795,5.7922,197.58,197.43,16.90112207]
[1735175272796,16.90112207,197.51,197.43,16.90112207]
[1735175274010,16.90112207,197.49,197.42,6.0011]
[1735175274716,16.90112207,197.47,197.42,6.0011]
[1735175276027,16.90112207,197.49,197.42,6.0011]
[1735175276391,16.90112207,197.47,197.42,6.0011]
[1735175276591,16.90112207,197.45,197.42,6.0011]
[1735175278032,16.90112207,197.43,197.37,6.1669]
[1735175278326,16.90112207,197.41,197.37,6.1669]
[1735175278999,36.90112207,197.43,197.37,6.1669]
[1735175280630,16.90112207,197.47,197.39,16.90112207]
[1735175281201,16.90112207,197.45,197.37,23.06802207]
[1735175281500,16.90112207,197.47,197.39,16.90112207]
[1735175282119,16.90112207,197.49,197.41,16.90112207]
[1735175285516,16.90112207,197.47,197.39,16.90112207]
[1735175289503,42.21092207,197.56,197.41,16.90112207]
[1735175289504,16.90112207,197.49,197.41,16.90112207]
[1735175289699,16.90112207,197.47,197.39,17.66081005]
[1735175290006,16.90112207,197.43,197.37,23.06802207]
[1735175291922,16.90112207,197.45,197.37,23.06802207]
[1735175292124,16.90112207,197.47,197.39,16.90112207]
[1735175293841,16.90112207,197.51,197.43,16.90112207]
[1735175294212,16.90112207,197.51,197.41,16.90112207]
[1735175294727,16.90112207,197.51,197.42,7.6453]
[1735175295028,16.90112207,197.51,197.43,16.90112207]
[1735175295932,16.90112207,197.49,197.42,6.0818]
[1735175296630,16.90112207,197.51,197.42,6.0818]
[1735175297544,16.90112207,197.51,197.43,16.90112207]
[1735175297736,16.90112207,197.51,197.43,17.66062352]
[1735175298230,16.90112207,197.51,197.43,16.90112207]
[1735175298914,16.90112207,197.49,197.42,6.0818]
[1735175299433,16.90112207,197.45,197.42,6.0818]
[1735175299635,16.90112207,197.45,197.39,1.5635]
[1735175304330,16.90112207,197.47,197.39,18.46462207]
[1735175304531,16.90112207,197.49,197.41,16.90112207]
[1735175305344,16.90112207,197.51,197.43,16.90112207]
[1735175306024,16.90112207,197.51,197.41,16.90112207]
[1735175306223,16.90112207,197.49,197.41,16.90112207]
[1735175306844,16.90112207,197.53,197.45,6.0818]
[1735175307521,4.43577838,197.59,197.46,16.90112207]
[1735175307720,16.90112207,197.58,197.49,16.90112207]
[1735175308231,16.90112207,197.58,197.49,17.66044848]
[1735175308435,16.90112207,197.58,197.51,16.90112207]
[1735175309338,16.90112207,197.56,197.49,16.90112207]
[1735175309723,16.90112207,197.56,197.47,18.46462207]
[1735175309923,16.90112207,197.54,197.47,18.46462207]
[1735175310120,16.90112207,197.52,197.47,1.5635]
[1735175310338,16.90112207,197.48,197.45,6.0818]
[1735175310540,16.90112207,197.48,197.42,1.5635]
[1735175310541,16.90112207,197.46,197.42,1.5635]
[1735175310742,16.90112207,197.44,197.39,6.0818]
[1735175313329,16.90112207,197.46,197.39,6.0818]
[1735175319054,23.776884,197.45,197.39,6.0818]
[1735175319353,16.90112207,197.46,197.39,6.0818]
[1735175320450,16.90112207,197.46,197.39,22.98292207]
[1735175320654,16.90112207,197.48,197.39,22.98292207]
[1735175323752,12.6583,197.5,197.41,16.90112207]
[1735175323753,16.90112207,197.5,197.41,16.90112207]
[1735175324149,16.90112207,197.5,197.43,16.90112207]
[1735175324651,16.90112207,197.52,197.43,16.90112207]
[1735175324956,16.90112207,197.52,197.45,16.90112207]
[1735175325651,16.90112207,197.54,197.45,16.90112207]
[1735175325859,16.90112207,197.54,197.46,6.4023]
[1735175326655,16.90112207,197.5,197.46,6.4023]
[1735175329666,20.0,197.57,197.46,6.4023]
[1735175329872,16.90112207,197.52,197.46,6.4023]
[1735175331048,16.90112207,197.5,197.46,6.4023]
[1735175335950,23.776884,197.49,197.4,6.1046]
[1735175336265,16.90112207,197.44,197.4,6.1046]
[1735175336566,16.90112207,197.42,197.35,6.1046]
[1735175339886,16.90112207,197.44,197.35,23.00572207]
[1735175340089,16.90112207,197.44,197.37,16.90112207]
[1735175341283,16.90112207,197.4,197.35,6.1046]
[1735175341671,16.90112207,197.42,197.35,6.1046]
[1735175341868,16.90112207,197.44,197.37,16.90112207]
[1735175342073,16.90112207,197.46,197.37,16.90112207]
[1735175344704,16.90112207,197.44,197.35,23.00572207]
[1735175345493,16.90112207,197.45,197.37,16.90112207]
[1735175348491,16.90112207,197.47,197.39,16.90112207]
[1735175348697,16.90112207,197.49,197.41,16.90112207]
[1735175349073,16.90112207,197.49,197.42,8.1841]
[1735175351096,16.90112207,197.51,197.43,16.90112207]
[1735175351978,16.90112207,197.49,197.42,8.1841]
[1735175352174,16.90112207,197.51,197.43,16.90112207]
[1735175352383,16.90112207,197.53,197.43,16.90112207]
[1735175354084,16.90112207,197.53,197.45,16.90112207]
[1735175355103,16.90112207,197.55,197.47,16.90112207]
[1735175355979,16.90112207,197.53,197.45,16.90112207]
[1735175356183,16.90112207,197.49,197.42,8.1841]
[1735175357000,16.90112207,197.51,197.43,16.90112207]
[1735175357202,16.90112207,197.49,197.42,8.1841]
[1735175357508,16.90112207,197.51,197.43,16.90112207]
[1735175361288,16.90112207,197.49,197.42,8.1841]
[1735175361912,20.0,197.48,197.42,8.1841]
[1735175362502,16.90112207,197.51,197.42,8.1841]
[1735175363416,23.776884,197.5,197.42,8.1841]
[1735175363816,16.90112207,197.51,197.42,8.1841]
[1735175364704,16.90112207,197.53,197.43,16.90112207]
[1735175364921,16.90112207,197.53,197.45,16.90112207]
[1735175365600,16.90112207,197.55,197.47,16.90112207]
[1735175366314,16.90112207,197.57,197.49,16.90112207]
[1735175366514,16.90112207,197.57,197.5,6.3337]
[1735175367816,16.90112207,197.55,197.5,6.3337]
[1735175373217,16.90112207,197.51,197.46,6.3337]
[1735175373415,16.90112207,197.49,197.42,1.5217]
[1735175373827,16.90112207,197.47,197.42,1.5217]
[1735175375421,16.90112207,197.47,197.33,0.75979657]
[1735175375422,16.90112207,197.43,197.37,8.1482]
[1735175375728,16.90112207,197.4,197.32,25.04932207]
[1735175377738,16.90112207,197.42,197.34,16.90112207]
[1735175378218,23.776884,197.41,197.34,16.90112207]
[1735175380221,16.90112207,197.4,197.32,25.04932207]
[1735175384725,23.776884,197.41,197.34,16.90112207]
[1735175385025,16.90112207,197.44,197.36,16.90112207]
[1735175385630,16.90112207,197.46,197.38,16.90112207]
[1735175386416,16.90112207,197.46,197.4,16.90112207]
[1735175387031,16.90112207,197.48,197.4,16.90112207]
[1735175387207,20.0,197.45,197.4,16.90112207]
[1735175388731,16.90112207,197.48,197.4,16.90112207]
[1735175389040,16.90112207,197.48,197.4,17.66080146]
[1735175389833,16.90112207,197.5,197.42,16.90112207]
[1735175390230,16.90112207,197.52,197.44,16.90112207]
[1735175390431,16.90112207,197.54,197.46,16.90112207]
[1735175391133,16.90112207,197.54,197.47,1.5526]
[1735175397534,16.90112207,197.53,197.47,1.5526]
[1735175397749,16.90112207,197.51,197.47,1.5526]
[1735175398234,10.84287762,197.49,197.45,6.1204]
[1735175398741,10.84287762,197.48,197.45,6.1204]
[1735175399420,10.84287762,197.49,197.45,6.1204]
[1735175399621,10.84287762,197.46,197.39,6.1204]
[1735175399834,10.84287762,197.45,197.39,6.1204]
[1735175400343,16.95137118,197.44,197.39,6.1204]
[1735175400542,16.95137118,197.41,197.39,6.1204]
[1735175400844,16.95137118,197.41,197.34,24.62437118]
[1735175401044,0.12549,197.53,197.34,24.62437118]
[1735175401045,16.95137118,197.42,197.34,24.62437118]
[1735175401229,16.95137118,197.41,197.34,24.62437118]
[1735175401837,20.0,197.42,197.34,7.673]
[1735175402027,16.95137118,197.38,197.34,7.673]
[1735175402232,36.95137118,197.35,197.29,7.673]
[1735175402428,36.95137118,197.35,197.29,6.1204]
[1735175402429,16.95137118,197.32,197.29,6.1204]
[1735175403131,16.95137118,197.32,197.24,24.62437118]
[1735175406543,20.0,197.35,197.28,16.95137118]
[1735175406848,20.0,197.33,197.28,16.95137118]
[1735175407221,16.95137118,197.36,197.28,16.95137118]
[1735175407457,16.95137118,197.34,197.26,16.95137118]
[1735175408829,16.95137118,197.34,197.24,7.673]
[1735175408830,12.6624,197.44,197.3,16.95137118]
[1735175409030,16.95137118,197.39,197.3,16.95137118]
[1735175410757,16.95137118,197.41,197.34,16.95137118]
[1735175412052,16.95137118,197.43,197.34,16.95137118]
[1735175412233,20.0,197.4,197.34,16.95137118]
[1735175412438,16.95137118,197.41,197.34,16.95137118]
[1735175416248,16.95137118,197.41,197.33,1.509]
[1735175416249,16.95137118,197.39,197.33,1.509]
[1735175416958,23.776884,197.38,197.33,1.509]
[1735175417156,16.95137118,197.35,197.29,1.509]
[1735175417451,36.95137118,197.32,197.28,6.6061]
[1735175417628,16.95137118,197.3,197.25,1.509]
[1735175418357,16.95137118,197.28,197.23,6.6061]
[1735175419657,16.95137118,197.26,197.23,6.6061]
[1735175420460,20.0,197.26,197.23,6.6061]
[1735175420762,16.95137118,197.27,197.23,6.6061]
[1735175424041,23.776884,197.31,197.23,6.6061]
[1735175424252,20.0,197.28,197.23,23.55747118]
[1735175424436,40.72825518,197.31,197.23,23.55747118]
[1735175424437,16.95137118,197.31,197.23,23.55747118]
[1735175424637,16.95137118,197.33,197.25,16.95137118]
[1735175425042,16.95137118,197.35,197.27,16.95137118]
[1735175425784,20.0,197.32,197.27,16.95137118]
[1735175426067,16.95137118,197.37,197.29,16.95137118]
[1735175427554,12.664,197.41,197.29,16.95137118]
[1735175427744,16.95137118,197.41,197.33,16.95137118]
[1735175428245,16.95137118,197.43,197.33,16.95137118]
[1735175428751,16.95137118,197.41,197.33,16.95137118]
[1735175428946,16.95137118,197.39,197.32,6.3698]
[1735175429947,16.95137118,197.41,197.32,6.3698]
[1735175430250,23.776884,197.4,197.32,6.3698]
[1735175430546,16.95137118,197.39,197.32,6.3698]
[1735175431246,16.95137118,197.37,197.32,6.3698]
[1735175432244,16.95137118,197.39,197.32,6.3698]
[1735175435263,16.95137118,197.37,197.32,6.3698]
[1735175435648,23.776884,197.36,197.32,6.3698]
[1735175436167,16.95137118,197.38,197.32,6.3698]
[1735175436969,23.776884,197.37,197.32,6.3698]
[1735175437167,16.95137118,197.36,197.32,6.3698]
[1735175438861,16.95137118,197.38,197.32,6.3698]
[1735175439345,16.95137118,197.36,197.32,6.3698]
[1735175439748,0.12549,197.43,197.32,6.3698]
[1735175439960,16.95137118,197.37,197.32,6.3698]
[1735175440167,16.95137118,197.35,197.32,6.3698]
[1735175440371,36.95137118,197.33,197.27,6.5749]
[1735175440551,16.95137118,197.3,197.27,6.5749]
[1735175440747,16.95137118,197.28,197.25,1.6109]
[1735175441073,16.95137118,197.28,197.22,6.5749]
[1735175441489,16.95137118,197.27,197.22,6.5749]
[1735175441778,16.95137118,197.23,197.22,6.5749]
[1735175441974,23.776884,197.22,197.17,6.5749]
[1735175442289,16.95137118,197.2,197.17,6.5749]
[1735175442452,39.5891,197.33,197.19,16.95137118]
[1735175442453,23.776884,197.27,197.19,16.95137118]
[1735175442653,1.5817,197.38,197.21,16.95137118]
[1735175442867,16.95137118,197.29,197.21,16.95137118]
[1735175443075,16.95137118,197.3,197.22,16.95137118]
[1735175443573,16.95137118,197.23,197.17,6.5749]
[1735175443774,16.95137118,197.21,197.17,6.5749]
[1735175444074,16.95137118,197.19,197.17,6.5749]
[1735175444692,16.95137118,197.19,197.15,1.6109]
[1735175444989,16.95137118,197.16,197.11,6.5749]
[1735175445186,16.95137118,197.18,197.11,6.5749]
[1735175445402,16.95137118,197.18,197.11,23.52627118]
[1735175446190,16.95137118,197.15,197.11,6.5749]
[1735175449795,16.95137118,197.17,197.11,6.5749]
[1735175449985,16.95137118,197.15,197.11,6.5749]
[1735175450178,16.95137118,197.13,197.11,6.5749]
[1735175450993,16.95137118,197.15,197.11,6.5749]
[1735175452673,20.0,197.14,197.11,6.5749]
[1735175453081,16.95137118,197.17,197.11,6.5749]
[1735175453284,40.72825518,197.19,197.11,6.5749]
[1735175453799,16.95137118,197.21,197.12,16.95137118]
[1735175455691,16.95137118,197.23,197.14,16.95137118]
[1735175457400,16.95137118,197.21,197.14,16.95137118]
[1735175458385,16.95137118,197.23,197.14,16.95137118]
[1735175460691,14.3113,197.32,197.18,16.95137118]
[1735175460890,16.95137118,197.29,197.2,16.95137118]
[1735175461297,16.95137118,197.27,197.2,16.95137118]
[1735175461791,45.94564033,197.37,197.22,16.95137118]
[1735175461792,12.6677,197.36,197.22,16.95137118]
[1735175462110,16.95137118,197.31,197.22,16.95137118]
[1735175462497,16.95137118,197.29,197.22,16.95137118]
[1735175463809,20.0,197.33,197.22,16.95137118]
[1735175464016,16.95137118,197.31,197.24,16.95137118]
[1735175464899,16.95137118,197.33,197.24,17.71166158]
[1735175465210,16.95137118,197.33,197.26,16.95137118]
[1735175465507,16.95137118,197.31,197.23,16.95137118]
[1735175466531,0.12549,197.36,197.23,16.95137118]
[1735175466690,16.95137118,197.33,197.25,16.95137118]
[1735175466890,23.776884,197.36,197.27,16.95137118]
[1735175466891,16.95137118,197.35,197.27,16.95137118]
[1735175469513,16.95137118,197.33,197.22,0.76023568]
[1735175469720,16.95137118,197.31,197.22,16.95137118]
[1735175470916,16.95137118,197.31,197.24,16.95137118]
[1735175472019,16.95137118,197.31,197.22,16.95137118]
[1735175472316,16.95137118,197.29,197.22,16.95137118]
[1735175473604,16.95137118,197.31,197.22,16.95137118]
[1735175473803,16.95137118,197.31,197.21,7.6545]
[1735175473804,16.95137118,197.31,197.24,16.95137118]
[1735175474096,16.95137118,197.35,197.28,16.95137118]
[1735175477325,19.48498909,197.44,197.3,16.95137118]
[1735175477326,16.95137118,197.37,197.3,16.95137118]
[1735175477526,16.95137118,197.39,197.3,16.95137118]
[1735175477703,16.95137118,197.39,197.32,16.95137118]
[1735175478932,16.95137118,197.41,197.32,16.95137118]
[1735175479229,16.95137118,197.41,197.34,16.95137118]
[1735175480229,16.95137118,197.39,197.32,16.95137118]
[1735175480911,20.0,197.42,197.3,23.95706788]
[1735175481117,16.95137118,197.37,197.3,23.19717118]
[1735175481326,43.776884,197.41,197.3,23.19717118]
[1735175481511,16.95137118,197.4,197.32,16.95137118]
[1735175481714,16.95137118,197.4,197.31,0.76003726]
[1735175481715,16.95137118,197.41,197.33,16.95137118]
[1735175482016,16.95137118,197.42,197.34,16.95137118]
[1735175482220,16.95137118,197.42,197.35,16.95137118]
[1735175483125,16.95137118,197.43,197.35,16.95137118]
[1735175484925,16.95137118,197.41,197.33,16.95137118]
[1735175485126,12.6621,197.44,197.32,16.95137118]
[1735175485311,16.95137118,197.39,197.32,16.95137118]
[1735175486333,16.95137118,197.4,197.32,16.95137118]
[1735175486627,16.95137118,197.4,197.33,16.95137118]
[1735175488733,16.95137118,197.41,197.33,16.95137118]
[1735175489125,16.95137118,197.43,197.35,16.95137118]
[1735175489326,14.25232824,197.51,197.37,16.95137118]
[1735175489327,16.95137118,197.45,197.37,16.95137118]
[1735175490135,16.95137118,197.45,197.38,6.2458]
[1735175491508,16.95137118,197.46,197.4,16.95137118]
[1735175492009,16.95137118,197.48,197.4,16.95137118]
[1735175493736,5.8582675,197.59,197.47,6.2458]
[1735175493737,0.0660675,197.59,197.47,6.2458]
[1735175493931,0.0660675,197.59,197.49,16.95137118]
[1735175494131,16.95137118,197.57,197.49,16.95137118]
[1735175497135,16.95137118,197.55,197.47,23.95652328]
[1735175497344,16.95137118,197.53,197.47,6.2458]
[1735175498211,16.95137118,197.53,197.47,23.19717118]
[1735175498412,16.95137118,197.57,197.49,16.95137118]
[1735175498631,17.01743868,197.59,197.51,16.95137118]
[1735175498942,0.0660675,197.59,197.55,23.09247118]
[1735175500240,0.0660675,197.59,197.55,6.1411]
[1735175500412,16.95137118,197.57,197.55,6.1411]
[1735175501143,16.95137118,197.57,197.5,6.1411]
[1735175502325,16.95137118,197.57,197.5,9.1411]
[1735175505042,16.95137118,197.57,197.5,12.1411]
[1735175505431,16.95137118,197.55,197.5,6.0]
[1735175506844,16.95137118,197.55,197.5,9.0]
[1735175508247,16.95137118,197.51,197.5,9.0]
[1735175508435,40.72825518,197.51,197.5,12.0]
[1735175509648,53.38575518,197.51,197.5,15.0]
[1735175510429,53.51124518,197.51,197.5,7.5047]
[1735175510635,53.51124518,197.51,197.5,4.3549]
[1735175511349,0.12549,197.47,197.35,6.1456]
[1735175511533,16.95137118,197.42,197.35,6.1456]
[1735175511929,13.95137118,197.42,197.35,6.1456]
[1735175513250,16.95137118,197.4,197.35,6.1456]
[1735175514547,16.95137118,197.38,197.33,1.5962]
[1735175516041,16.95137118,197.4,197.33,1.5962]
[1735175516437,20.0,197.37,197.3,6.1456]
[1735175516639,16.95137118,197.33,197.3,6.1456]
[1735175518351,16.95137118,197.33,197.28,1.5962]
[1735175518559,16.95137118,197.31,197.25,6.1456]
[1735175519229,16.95137118,197.33,197.25,6.1456]
[1735175519929,16.95137118,197.33,197.26,16.95137118]
[1735175521257,16.95137118,197.35,197.26,16.95137118]
[1735175522259,16.95137118,197.35,197.28,16.95137118]
[1735175524865,16.95137118,197.33,197.26,16.95137118]
[1735175525069,20.0,197.37,197.25,6.1456]
[1735175525070,16.95137118,197.29,197.25,6.1456]
[1735175525853,16.95137118,197.27,197.25,6.1456]
[1735175527589,16.95137118,197.27,197.19,23.14837118]
[1735175529372,16.95137118,197.27,197.19,23.90879602]
[1735175530775,20.0,197.28,197.19,23.90879602]
[1735175531078,12.6683,197.35,197.23,16.95137118]
[1735175531277,16.95137118,197.33,197.23,16.95137118]
[1735175531453,16.95137118,197.33,197.24,0.76023009]
[1735175532150,16.95137118,197.33,197.25,16.95137118]
[1735175532357,16.95137118,197.33,197.26,1.6544]
[1735175532862,16.95137118,197.35,197.28,6.0897]
[1735175533770,16.95137118,197.33,197.24,16.95137118]
[1735175534182,16.95137118,197.31,197.23,0.76019198]
[1735175536081,16.95137118,197.33,197.24,16.95137118]
[1735175536793,16.95137118,197.33,197.23,0.76019198]
[1735175536961,16.95137118,197.31,197.23,0.76019198]
[1735175537166,16.95137118,197.31,197.23,17.71156316]
[1735175538271,16.95137118,197.31,197.23,16.95137118]
[1735175538457,16.95137118,197.31,197.22,6.0897]
[1735175538783,16.95137118,197.31,197.23,3.0]
[1735175539163,16.95137118,197.29,197.23,3.0]
[1735175540083,16.95137118,197.29,197.23,6.0]
[1735175542888,16.95137118,197.29,197.23,9.0]
[1735175547092,16.95137118,197.27,197.23,9.0]
[1735175547273,0.12549,197.32,197.23,9.0]
[1735175547274,16.95137118,197.25,197.23,9.0]
[1735175548195,10.87083341,197.25,197.23,9.0]
[1735175548980,12.6716,197.3,197.23,9.0]
[1735175548981,30.87083341,197.27,197.23,9.0]
[1735175550271,16.983612,197.26,197.23,9.0]
[1735175550990,36.983612,197.24,197.23,9.0]
[1735175551179,60.760496,197.24,197.23,9.0]
[1735175551379,36.983612,197.24,197.23,9.0]
[1735175551778,16.983612,197.28,197.23,9.0]
[1735175554605,16.983612,197.3,197.23,9.0]
[1735175554773,25.3283,197.41,197.23,9.0]
[1735175554774,1.5184,197.39,197.28,16.983612]
[1735175554973,1.5184,197.44,197.28,16.983612]
[1735175555211,16.983612,197.37,197.28,16.983612]
[1735175556123,1.5184,197.44,197.32,1.6172]
[1735175556404,16.983612,197.39,197.32,1.6172]
[1735175556814,16.983612,197.37,197.32,1.6172]
[1735175557903,16.983612,197.41,197.34,16.983612]
[1735175561605,16.983612,197.43,197.35,0.75980727]
[1735175562005,16.983612,197.45,197.38,16.983612]
[1735175562208,16.983612,197.45,197.39,6.1291]
[1735175562512,16.983612,197.47,197.39,6.1291]
[1735175562713,16.983612,197.47,197.4,1.6172]
[1735175563119,16.983612,197.49,197.4,19.36046332]
[1735175563326,16.983612,197.49,197.4,49.36046332]
[1735175563514,16.983612,197.51,197.42,16.983612]
[1735175563714,16.983612,197.51,197.43,0.75950024]
[1735175564517,16.983612,197.49,197.4,18.600812]
[1735175564822,16.983612,197.45,197.4,1.6172]
[1735175567410,16.983612,197.43,197.39,6.1291]
[1735175570933,16.983612,197.41,197.35,1.6172]
[1735175572230,16.983612,197.37,197.3,24.894812]
[1735175572425,16.983612,197.37,197.3,7.9112]
[1735175573709,16.983612,197.35,197.3,7.9112]
[1735175578842,16.983612,197.35,197.3,10.9112]
[1735175579542,16.983612,197.37,197.3,10.9112]
[1735175580311,16.983612,197.39,197.3,31.65483579]
[1735175581541,16.983612,197.39,197.3,30.894812]